Workbook

Sheet Cirkulationstab
C3: Værktøj til beregning af cirkulationstabet i rørledningen til varmt brugsvand i W pr. lejlighed
C6: DT middel varmt brugsvand / kælder og loft | D6: 35 | E6: °K
C8: DT middel varmt brugsvand / temperatur i lejligheder | D8: 25 | E8: °K
C10: Bygningslængde L | D10: 30 | E10: m
C12: Bygningsbredde B | D12: 12 | E12: m
C14: Bygningshøjde H | D14: 12 | E14: m
C16: Antal etager | D16: 3 | E16: stk.
C18: Antal lejligheder | D18: 10 | E18: stk.
C20: Antal stigstrenge pr. lejlighed | D20: 2 | E20: stk.
C22: Er stigstrengene isolerede (ja/Nej) | D22: Nej
AB23: Ja
C24: Middel rørdimension kælder | D24: 25 | E24: mm udv. | AB24: Nej
C26: Middel rørdimension stigstrenge | D26: 25 | E26: mm
C28: Varmtvandsbeholder | D28: 600 | E28: l
C30: Længde af rør i kælder/loft | D30: =2*D10 -> 60 | E30: m
C32: U-værdi | D32: ='rørtab cirk'!C17 -> 3.728237189 | E32: W/m
C34: Varmetab kælder/loft | D34: =D30*D32 -> 223.6942314 | E34: W
C36: Længde af stigstrenge | D36: =D14*D18/D16*D20 -> 80 | E36: m
C38: U-værdi uisolerede stigstrenge | D38: ='rørtab cirk'!D17 -> 8.300357018 | E38: W/m
C40: U-værdi isolerede stigstrenge | D40: ='rørtab cirk'!D17 -> 8.300357018 | E40: W/m
C42: Varmetab stigstrenge | D42: =(D40*(D22="Ja") +D38*(D22="Nej"))*D36 -> 664.0285615 | E42: W
C44: Varmtvandsbeholder ECO*2 DT 30 K | D44: =(16.66+8.33*D28^0.4)*2*(30/45)^1.3 -> 146.7315279 | E44: W
C46: Varmetab i alt inkl. 20 % kuldebroer | D46: =(D44+D42+D34)*1.2 -> 1241.345185 | E46: W
C48: Varmetab pr. lejlighed | D48: =D46/D18 -> 124.1345185 | E48: W

Sheet Rørtab_fælles_vent
C3: Værktøj til beregning af hvor stor en procentdel af rumvarmeforbruget der går til varmetab og opvarmning af fælleslokaler samt forvarmning af ventilationsluft
C6: Er der central balanceret ventilation med forvarmning af ventilationsluft (Ja/Nej) | D6: Ja
AB7: Ja
C8: Varmeforbrug | D8: 110000 | E8: kWh/år | AB8: Nej
C10: Varmt vand målt på primærsiden varmtvandsbeholder | D10: 25000 | E10: kWh/år
C12: Cirka værdi for rørtab | D12: 11925.72361 | E12: kWh/år | G12: Startværdi
C14: Makstimetal | D14: 2200 | E14: h/år
C16: Dimensionerende afkøling | D16: 20 | E16: °C
C18: Delta T middel centralvarmevand / kælder og loft | D18: 45 | E18: °K
C20: Delta T middel centralvarmevand / temperatur i lejligheder | D20: 40 | E20: °K
C22: Bygningslængde L | D22: 30 | E22: m
C24: Bygningsbredde B | D24: 12 | E24: m
C26: Bygningshøjde H | D26: 12 | E26: m
C28: Antal etager | D28: 3 | E28: stk.
C30: Antal lejligheder | D30: 10 | E30: stk.
C32: Antal stigstrenge pr. lejlighed | D32: 3 | E32: stk.
C34: Er stigstrengene isolerede (Ja/Nej) | D34: Ja
AB35: Ja
C36: Driftstimer varmeanlæg | D36: 5000 | E36: h | AB36: Nej
C38: Et-strengsanlæg (Ja/Nej) | D38: Nej
AB39: Ja
C40: Radiatorvarme ud | D40: =D8-D10-D12 -> 73074.27639 | E40: kWh/år | AB40: Nej
C42: Maks. effekt ved -12 °C | D42: =D40/D14 -> 33.21558018 | E42: kW
C44: Vandstrøm ved maks | D44: =D42/D16*0.86 -> 1.428269948 | E44: m3/h
G45: Indvendig rørdiam. baseret på 1½ m/sek
C46: Udvendig diameter ved maks 1,5 m/s | D46: =rør!C10 -> 33.75 | E46: mm kælderledninger | G46: =SQRT(1/1*D44*4/3600/PI())*1000 -> 22.47547909
C48: Varmetab for rør i kælder | D48: =rørtab!C17 -> 6.670490791 | E48: W/m
C50: Stigstrenge i kælder, udv. rørdiameter | D50: 22 | E50: mm
C52: Varmetab for stigstrenge i kælder | D52: =rørtab!D17 -> 5.235859565 | E52: W/m
C54: Stigstrenge i lejligheder udv. rørdiameter | D54: 22 | E54: mm
C56: Stigstrenge i lejligheder, hvis isolerede | D56: =rørtab!E17 -> 4.356276225 | E56: W/m
C58: Stigstrenge i lejligheder, hvis uisolerede | D58: =rørtab!E17 -> 4.356276225 | E58: W/m
C60: Stigstrenge i lejligheder | D60: =(D34="Nej")*D58+(D34="Ja")*D56 -> 4.356276225 | E60: W/m
C62: Rørlængde hovedledninger | D62: =2*D22 -> 60 | E62: m
C64: Rørlængde stigstrenge på loft / i kælder | D64: =+D24*D32*(D30/D28) -> 120 | E64: m
C66: Rørlængde stigstrenge i lejligheder | D66: =D26*D32*D30/D28*(IF(D38="Ja",1,2)) -> 240 | E66: m
C68: Varmetab hovedledninger kælder | D68: =D62*D48*D36/1000 -> 2001.147237 | E68: kWh/år
C70: Varmetab stigstrenge på loft/ i kælder | D70: =D64*D52*D36/1000 -> 3141.515739 | E70: kWh/år
C72: Varmetab stigstrenge i lejligheder | D72: =D66*D60*D36/1000 -> 5227.53147 | E72: kWh/år
C74: Varmetab totalt | D74: =SUM(D68:D72) -> 10370.19445 | E74: kWh/år
C76: Varmetab totalt inkl. tillæg for kuldebroer mv + 15 % | D76: =D74*1.15 -> 11925.72361 | E76: kWh/år | F76: =D12-D76 -> 0
C78: Samlet rørvarmetab fra centralvarmerør | D78: =D76/(D8-D10)*100 -> 14.03026307 | E78: %
C80: Forvarmning af ventilationsluft | D80: =(D6="Ja")*rørtab!C50/(D8-D10)*100 -> 6.602372894 | E80: %
C82: Rørtab + forvarmning af ventilation | D82: =D78+D80 -> 20.63263597 | E82: %

Sheet rørtab cirk
B2: Tvarm | C2: =Cirkulationstab!D6 -> 35 | D2: =Cirkulationstab!D8 -> 25
B3: Tkold | C3: 15 | D3: 15
B4: Lambda | C4: 0.04 | D4: 0.04
B5: Di | C5: =Cirkulationstab!D24 -> 25 | D5: =Cirkulationstab!D26 -> 25
B6: Tykkelse | C6: 30 | D6: =IF(Cirkulationstab!D22="y",30,0.01) -> 0.01
B7: epsilon | C7: 1 | D7: 1
B9: Resultater | F9: Plan
B10: Dy mm, Plan m2 | C10: =+(C5+2*C6) -> 85 | D10: =+(D5+2*D6) -> 25.02
B11: Udvendig Temp gæt | C11: 16.84915991 | D11: 24.9734848 | F11: 19.39573225
B12: Alfa U W/m2K | C12: =(46*((C11+C3)/2+273)^(-0.62)*(C11-C3)^0.33)*(C10/200)^-0.25 +C7*0.0000000567*((273+C11)^4-(273+C3)^4)/(C11-C3) -> 7.550231488 | D12: =(46*((D11+D3)/2+273)^(-0.62)*(D11-D3)^0.33)*(D10/200)^-0.25 +D7*0.0000000567*((273+D11)^4-(273+D3)^4)/(D11-D3) -> 10.58796909 | F12: =(46*((F11+C3)/2+273)^(-0.62)*(F11-C3)^0.33) +C7*0.0000000567*((273+F11)^4-(273+C3)^4)/(F11-C3) -> 7.771958413
B13: Varmestrøm iso, W/m, W/m2 | C13: =+((PI()/(1/2/C4*LN(C10/C5)+1/C12/(C10/1000))))*(C2-C3) -> 3.727702194 | D13: =+((PI()/(1/2/D4*LN(D10/D5)+1/D12/(D10/1000))))*(D2-D3) -> 8.300444098 | F13: =+(C2-F11)*C4/C6*1000 -> 20.80569033
B14: Varmestrøm overfladeW/m W/m2 | C14: =+PI()*C10/1000*C12*(C11-C3) -> 3.728237189 | D14: =+PI()*D10/1000*D12*(D11-D3) -> 8.300357018 | F14: =+F12*(F11-C3) -> 34.16344826
B15: Kontrol skal være 0 | C15: =+C14-C13 -> 0.000534995415 | D15: =+D14-D13 -> -8.707990682e-05 | F15: =+(F14-F13)^2 -> 178.429697
B17: Varmestrøm W/m W/m2 | C17: =+C14 -> 3.728237189 | D17: =+D14 -> 8.300357018 | F17: =+F14 -> 34.16344826
B18: Plan Varmestrøm W/m2
B21: Tm | C21: =(C2+C11)/2 -> 25.92457995
B23: Lambda | C23: =(3.35*10^-2)+(1.273*10^-4)*C21+(3.571*10^-7)*C21 -> 0.0368094567
C25: Tab [W/m] | G25: Besp [kWh]
B26: Udenfor klimaskærm 4°C | C26: 0 mm | D26: 40 mm | E26: 50 mm | G26: 40 mm | H26: 50 mm
B27: 22 mm | C27: 45.7 | D27: 6.9 | E27: 6.2 | G27: =((C27-D27)/1000)*6000 -> 232.8 | H27: =((C27-E27)/1000)*6000 -> 237
B28: 28 mm | C28: 56.2 | D28: 7.8 | E28: 7 | G28: =((C28-D28)/1000)*6000 -> 290.4 | H28: =((C28-E28)/1000)*6000 -> 295.2
B29: 35 mm | C29: 68.2 | D29: 8.8 | E29: 7.9 | G29: =((C29-D29)/1000)*6000 -> 356.4 | H29: =((C29-E29)/1000)*6000 -> 361.8
C32: Tab [W/m] | G32: Besp [kWh]
B33: Indenfor klimaskærm 20°C | C33: 0 mm | D33: 40 mm | E33: 50 mm | G33: 40 mm | H33: 50 mm
B34: 22 mm | C34: 28.3 | D34: 4.5 | E34: 4.1 | G34: =0.5*((C34-D34)/1000)*6000 -> 71.4 | H34: =0.5*((C34-E34)/1000)*6000 -> 72.6
B35: 28 mm | C35: 35 | D35: 5.1 | E35: 4.6 | G35: =0.5*((C35-D35)/1000)*6000 -> 89.7 | H35: =0.5*((C35-E35)/1000)*6000 -> 91.2
B36: 35 mm | C36: 42.5 | D36: 5.8 | E36: 5.2 | G36: =0.5*((C36-D36)/1000)*6000 -> 110.1 | H36: =0.5*((C36-E36)/1000)*6000 -> 111.9
C39: Tab [W/m] | G39: Besp [kWh]
B40: Uopvarmet kælder 10 °C | C40: 0 mm | D40: 40 mm | E40: 50 mm | G40: 40 mm | H40: 50 mm
B41: 22 mm | C41: 39 | D41: 6 | E41: 5.4 | G41: =0.5*((C41-D41)/1000)*6000 -> 99 | H41: =0.5*((C41-E41)/1000)*6000 -> 100.8
B42: 28 mm | C42: 48 | D42: 6.8 | E42: 6.1 | G42: =0.5*((C42-D42)/1000)*6000 -> 123.6 | H42: =0.5*((C42-E42)/1000)*6000 -> 125.7
B43: 35 mm | C43: 58.2 | D43: 7.7 | E43: 6.9 | G43: =0.5*((C43-D43)/1000)*6000 -> 151.5 | H43: =0.5*((C43-E43)/1000)*6000 -> 153.9

Sheet rørtab
B2: Tvarm | C2: =Rørtab_fælles_vent!D18 -> 45 | D2: =Rørtab_fælles_vent!D18 -> 45 | E2: =Rørtab_fælles_vent!D20 -> 40
B3: Tkold | C3: 15 | D3: 15 | E3: 15
B4: Lambda | C4: 0.04 | D4: 0.04 | E4: 0.04
B5: Di | C5: =Rørtab_fælles_vent!D46 -> 33.75 | D5: =Rørtab_fælles_vent!D50 -> 22 | E5: =Rørtab_fælles_vent!D54 -> 22
B6: Tykkelse | C6: 30 | D6: 30 | E6: =IF(Rørtab_fælles_vent!D34="Ja",30,0.01) -> 30
B7: epsilon | C7: 1 | D7: 1 | E7: 1
B9: Resultater | F9: Plan
B10: Dy mm, Plan m2 | C10: =+(C5+2*C6) -> 93.75 | D10: =+(D5+2*D6) -> 82 | E10: 82
B11: Udvendig Temp gæt | C11: 17.88587545 | D11: 17.59366878 | E11: 17.19598644 | F11: 19.39573225
B12: Alfa U W/m2K | C12: =(46*((C11+C3)/2+273)^(-0.62)*(C11-C3)^0.33)*(C10/200)^-0.25 +C7*0.0000000567*((273+C11)^4-(273+C3)^4)/(C11-C3) -> 7.848001107 | D12: =(46*((D11+D3)/2+273)^(-0.62)*(D11-D3)^0.33)*(D10/200)^-0.25 +D7*0.0000000567*((273+D11)^4-(273+D3)^4)/(D11-D3) -> 7.83627648 | E12: 7.700555059 | F12: =(46*((F11+C3)/2+273)^(-0.62)*(F11-C3)^0.33) +C7*0.0000000567*((273+F11)^4-(273+C3)^4)/(F11-C3) -> 7.771958413
B13: Varmestrøm iso, W/m, W/m2 | C13: =+((PI()/(1/2/C4*LN(C10/C5)+1/C12/(C10/1000))))*(C2-C3) -> 6.670143582 | D13: =+((PI()/(1/2/D4*LN(D10/D5)+1/D12/(D10/1000))))*(D2-D3) -> 5.235348086 | E13: 4.356152942 | F13: =+(C2-F11)*C4/C6*1000 -> 34.13902366
B14: Varmestrøm overfladeW/m W/m2 | C14: =+PI()*C10/1000*C12*(C11-C3) -> 6.670490791 | D14: =+PI()*D10/1000*D12*(D11-D3) -> 5.235859565 | E14: 4.356276225 | F14: =+F12*(F11-C3) -> 34.16344826
B15: Kontrol skal være 0 | C15: =+C14-C13 -> 0.0003472094993 | D15: =+D14-D13 -> 0.0005114783208 | E15: 0.000123283172 | F15: =+(F14-F13)^2 -> 0.0005965610834
B17: Varmestrøm W/m W/m2 | C17: =+C14 -> 6.670490791 | D17: =+D14 -> 5.235859565 | E17: 4.356276225 | F17: =+F14 -> 34.16344826
B18: Plan Varmestrøm W/m2
B21: Tm | C21: =(C2+C11)/2 -> 31.44293773
B23: Lambda | C23: =(3.35*10^-2)+(1.273*10^-4)*C21+(3.571*10^-7)*C21 -> 0.03751391425
C25: Tab [W/m] | G25: Besp [kWh]
B26: Udenfor klimaskærm 4°C | C26: 0 mm | D26: 40 mm | E26: 50 mm | G26: 40 mm | H26: 50 mm
B27: 22 mm | C27: 45.7 | D27: 6.9 | E27: 6.2 | G27: =((C27-D27)/1000)*6000 -> 232.8 | H27: =((C27-E27)/1000)*6000 -> 237
B28: 28 mm | C28: 56.2 | D28: 7.8 | E28: 7 | G28: =((C28-D28)/1000)*6000 -> 290.4 | H28: =((C28-E28)/1000)*6000 -> 295.2
B29: 35 mm | C29: 68.2 | D29: 8.8 | E29: 7.9 | G29: =((C29-D29)/1000)*6000 -> 356.4 | H29: =((C29-E29)/1000)*6000 -> 361.8
C32: Tab [W/m] | G32: Besp [kWh]
B33: Indenfor klimaskærm 20°C | C33: 0 mm | D33: 40 mm | E33: 50 mm | G33: 40 mm | H33: 50 mm
B34: 22 mm | C34: 28.3 | D34: 4.5 | E34: 4.1 | G34: =0.5*((C34-D34)/1000)*6000 -> 71.4 | H34: =0.5*((C34-E34)/1000)*6000 -> 72.6
B35: 28 mm | C35: 35 | D35: 5.1 | E35: 4.6 | G35: =0.5*((C35-D35)/1000)*6000 -> 89.7 | H35: =0.5*((C35-E35)/1000)*6000 -> 91.2
B36: 35 mm | C36: 42.5 | D36: 5.8 | E36: 5.2 | G36: =0.5*((C36-D36)/1000)*6000 -> 110.1 | H36: =0.5*((C36-E36)/1000)*6000 -> 111.9
C39: Tab [W/m] | G39: Besp [kWh]
B40: Uopvarmet kælder 10 °C | C40: 0 mm | D40: 40 mm | E40: 50 mm | G40: 40 mm | H40: 50 mm
B41: 22 mm | C41: 39 | D41: 6 | E41: 5.4 | G41: =0.5*((C41-D41)/1000)*6000 -> 99 | H41: =0.5*((C41-E41)/1000)*6000 -> 100.8
B42: 28 mm | C42: 48 | D42: 6.8 | E42: 6.1 | G42: =0.5*((C42-D42)/1000)*6000 -> 123.6 | H42: =0.5*((C42-E42)/1000)*6000 -> 125.7
B43: 35 mm | C43: 58.2 | D43: 7.7 | E43: 6.9 | G43: =0.5*((C43-D43)/1000)*6000 -> 151.5 | H43: =0.5*((C43-E43)/1000)*6000 -> 153.9
B46: Ventilation
B47: m2 | C47: =Rørtab_fælles_vent!D28*Rørtab_fælles_vent!D22*Rørtab_fælles_vent!D24*0.9 -> 972
B48: m3/h= | C48: =0.3*3600*C47/1000 -> 1049.76 | D48: 0,3 l/sek /m2
B49: ydelse v -12 kW | C49: =0.33*(18-(-12))*C48/1000*(1-0.73) -> 2.80600848 | D49: 18 grd indblæsning, eta varmegenvinding = 0,73
B50: Årsforbrug 2000 max timer kWh | C50: =C49*2000 -> 5612.01696

Sheet rør
C2: Dy | E2: 10.6 | F2: 14 | G2: 17.5 | H2: 21.8 | I2: 27.3 | J2: 34.2 | K2: 42.9 | L2: 48.8 | M2: 60.8 | N2: 76.6 | O2: 89.5 | P2: 115
E3: 9.8 | F3: 13.2 | G3: 16.7 | H3: 21 | I3: 26.5 | J3: 33.3 | K3: 42 | L3: 47.8 | M3: 59.7 | N3: 75.3 | O3: 88 | P3: 113.1
C4: Middel Dy | E4: =AVERAGE(E2:E3) -> 10.2 | F4: =AVERAGE(F2:F3) -> 13.6 | G4: 17.1 | H4: 21.4 | I4: 26.9 | J4: 33.75 | K4: 42.45 | L4: 48.3 | M4: 60.25 | N4: 75.95 | O4: 88.75 | P4: 114.05
C5: Gods | E5: 2 | F5: 2.35 | G5: 2.35 | H5: 2.65 | I5: 2.645 | J5: 3.25 | K5: 3.25 | L5: 3.25 | M5: 3.65 | N5: 3.65 | O5: 4.05 | P5: 4.5
C6: Di | D6: 5 | E6: =E4-2*E5 -> 6.2 | F6: =F4-2*F5 -> 8.9 | G6: 12.4 | H6: 16.1 | I6: 21.61 | J6: 27.25 | K6: 35.95 | L6: 41.8 | M6: 52.95 | N6: 68.65 | O6: 80.65 | P6: 105.05 | Q6: 110
C7: Dber
B8: Di | C8: =Rørtab_fælles_vent!G46 -> 22.47547909 | E8: =($C$8>D6)*($C$8<E6)*E6 -> 0 | F8: 0 | G8: 0 | H8: 0 | I8: 0 | J8: 27.25 | K8: 0 | L8: 0 | M8: 0 | N8: 0 | O8: 0 | P8: 0 | Q8: 0
B9: Dy | E9: =(E8>0)*E4 -> 0 | F9: =(F8>0)*F4 -> 0 | G9: 0 | H9: 0 | I9: 0 | J9: 33.75 | K9: 0 | L9: =(L8>0)*L4 -> 0 | M9: =(M8>0)*M4 -> 0 | N9: =(N8>0)*N4 -> 0 | O9: =(O8>0)*O4 -> 0 | P9: =(P8>0)*P4 -> 0 | Q9: 0
B10: DY | C10: =MAX(E9:Q9) -> 33.75
